bitfinex/quotes_SOLUSD_20220128
["timestamp","ask_amount","ask_price","bid_price","bid_amount"]
[1643373075864,31.2669607,88.349,88.25,38.3375]
[1643373076065,31.2669607,88.349,88.226,27.44953347]
[1643373076066,6.0823297,88.348,88.204,22.965]
[1643373076267,3.13450665,88.338,88.181,3.12744259]
[1643373076466,3.13450665,88.334,88.21,13.58]
[1643373076665,48.6729,88.333,88.21,13.58]
[1643373076864,48.6729,88.333,88.188,6.0]
[1643373076865,8.65422356,88.332,88.211,38.63436898]
[1643373077065,3.13450665,88.325,88.211,38.63436898]
[1643373077265,0.25,88.324,88.211,38.63436898]
[1643373077468,3.12563828,88.323,88.211,38.63436898]
[1643373077669,119.16014493,88.323,88.211,38.63436898]
[1643373077867,31.2669607,88.309,88.211,38.63436898]
[1643373078268,0.25,88.308,88.212,0.25]
[1643373079167,0.25,88.308,88.221,6.0]
[1643373079368,17.007,88.29,88.221,6.0]
[1643373079568,8.40422356,88.289,88.211,38.63436898]
[1643373079768,8.65422356,88.289,88.211,38.63436898]
[1643373081168,31.2669607,88.269,88.211,38.63436898]
[1643373081468,0.25,88.268,88.211,38.63436898]
[1643373083774,0.25,88.268,88.212,0.25]
[1643373083973,17.013,88.26,88.212,0.25]
[1643373084372,0.25,88.259,88.211,38.63436898]
[1643373084772,0.25,88.259,88.212,0.25]
[1643373084973,56.707,88.29,88.212,0.25]
[1643373085375,17.01,88.28,88.212,0.25]
[1643373085572,17.01,88.28,88.212,47.6941]
[1643373085772,17.01,88.28,88.211,38.63436898]
[1643373085773,32.59708648,88.279,88.211,38.63436898]
[1643373085980,32.59708648,88.279,88.14,3.12744259]
[1643373085981,145.49708648,88.279,88.14,3.12744259]
[1643373086173,145.49708648,88.279,88.115,114.83174688]
[1643373086174,2.95669142,88.278,88.16,13.58]
[1643373086374,0.25,88.277,88.16,13.58]
[1643373086780,2.95669142,88.276,88.16,13.58]
[1643373086978,17.014,88.26,88.161,36.78698926]
[1643373087175,3.13450665,88.323,88.161,36.78698926]
[1643373087376,3.13450665,88.323,88.162,76.03624223]
[1643373087674,3.13450665,88.337,88.172,6.0]
[1643373087878,9.18,88.33,88.18,169.7]
[1643373088076,17.004,88.31,88.2,17.005]
[1643373088276,10.12963069,88.309,88.211,36.78698926]
[1643373088477,115.33456007,88.34,88.212,75.0]
[1643373088679,3.1090555,88.359,88.222,6.0]
[1643373088878,0.15236408,88.359,88.23,13.58]
[1643373089085,118.06504448,88.369,88.28,16.99]
[1643373089277,118.06504448,88.369,88.281,0.25]
[1643373089578,16.99,88.38,88.29,6.0]
[1643373089778,16.99,88.38,88.291,0.25]
[1643373089979,16.99,88.38,88.291,6.25]
[1643373090180,0.25,88.379,88.291,6.25]
[1643373090385,0.25,88.379,88.301,1.16417257]
[1643373090578,0.25,88.379,88.311,6.0]
[1643373090782,0.25,88.379,88.312,0.25]
[1643373090980,56.628,88.41,88.312,47.808]
[1643373091179,3.11368605,88.409,88.32,6.0]
[1643373091382,3.11368605,88.409,88.322,6.0]
[1643373091780,42.77026098,88.408,88.323,6.92504262]
[1643373091982,42.77026098,88.408,88.33,6.0]
[1643373092180,56.29656929,88.39,88.323,6.92504262]
[1643373092380,39.30756929,88.39,88.323,6.92504262]
[1643373093806,2.95669142,88.389,88.323,6.92504262]
[1643373093982,39.30756929,88.39,88.323,6.92504262]
[1643373094183,2.95669142,88.389,88.32,13.58]
[1643373094384,16.991,88.38,88.272,46.1598]
[1643373094683,2.95669142,88.379,88.282,6.0]
[1643373094883,3.20669142,88.379,88.282,6.0]
[1643373095085,3.20669142,88.379,88.28,20.271322]
[1643373095384,16.999,88.37,88.28,20.271322]
[1643373095586,45.77749479,88.369,88.28,20.271322]
[1643373095983,2.95669142,88.368,88.28,20.271322]
[1643373096382,16.997,88.36,88.28,20.271322]
[1643373096784,45.52749479,88.369,88.281,113.15]
[1643373096983,45.52749479,88.369,88.29,6.0]
[1643373097183,45.52749479,88.369,88.3,13.58]
[1643373097383,45.52749479,88.369,88.301,2.80544647]
[1643373097583,45.52749479,88.369,88.301,2.55544647]
[1643373098190,45.02749479,88.369,88.301,2.55544647]
[1643373098383,45.02749479,88.369,88.302,0.25]
[1643373098585,45.02749479,88.369,88.311,6.0]
[1643373098788,0.25,88.368,88.311,6.0]
[1643373098985,0.25,88.368,88.312,0.25]
[1643373099184,0.25,88.379,88.32,13.58]
[1643373099387,0.25,88.406,88.321,0.25]
[1643373099785,40.97928834,88.406,88.321,7.441322]
[1643373099985,16.987,88.4,88.321,7.441322]
[1643373100285,0.25,88.399,88.321,7.441322]
[1643373100485,16.987,88.4,88.321,7.441322]
[1643373100688,4.67521242,88.447,88.331,6.0]
[1643373100887,3.1097114,88.459,88.34,13.58]
[1643373101085,16.979,88.44,88.35,6.0]
[1643373101287,111.9,88.466,88.36,13.58]
[1643373101488,35.1390512,88.458,88.361,2.55544647]
[1643373101687,4.67521242,88.487,88.37,6.0]
[1643373101987,3.10747662,88.484,88.4,16.968]
[1643373102186,3.10747662,88.484,88.41,13.58]
[1643373102388,16.969,88.49,88.411,0.25]
[1643373102586,56.562,88.51,88.411,0.25]
[1643373102587,47.17274001,88.509,88.411,7.441322]
[1643373102986,47.17274001,88.509,88.421,6.0]
[1643373102987,3.10924218,88.508,88.421,6.0]
[1643373103387,16.967,88.5,88.422,0.25]
[1643373104086,16.967,88.5,88.431,2.55544647]
[1643373104290,47.17274001,88.509,88.432,0.25]
[1643373104689,47.17274001,88.509,88.441,6.0]
[1643373104890,47.17274001,88.509,88.442,0.25]
[1643373105092,16.964,88.52,88.442,0.25]
[1643373105389,0.25,88.519,88.442,0.25]
[1643373105694,16.964,88.52,88.45,6.0]
[1643373105895,16.965,88.51,88.272,101.39276288]
[1643373106093,16.965,88.51,88.42,13.58]
[1643373106293,2.95669142,88.509,88.353,23.1397]
[1643373106492,2.95669142,88.509,88.37,13.58]
[1643373106493,43.7873558,88.509,88.37,13.58]
[1643373106694,86.92170214,88.508,88.37,13.58]
[1643373106892,42.62349044,88.507,88.371,9.80821135]
[1643373107095,62.48463955,88.507,88.371,9.80821135]
[1643373107394,19.61114911,88.506,88.372,0.25]
[1643373107593,30.10084791,88.506,88.372,0.25]
[1643373107793,13.69639022,88.505,88.372,0.25]
[1643373107993,56.6,88.5,88.372,0.25]
[1643373108296,56.6,88.5,88.371,9.80821135]
[1643373108297,0.25,88.499,88.35,13.58]
[1643373108495,30.86362569,88.499,88.35,13.58]
[1643373108695,28.62471205,88.498,88.35,13.58]
[1643373108996,28.87471205,88.497,88.35,13.58]
[1643373109195,16.98,88.49,88.351,28.13506867]
[1643373109397,44.09168352,88.489,88.36,6.0]
[1643373109596,44.09168352,88.489,88.37,13.58]
[1643373109795,44.09168352,88.489,88.38,13.58]
[1643373109995,2.95669142,88.488,88.381,2.06354402]
[1643373110194,2.95669142,88.488,88.372,6.0]
[1643373110395,0.25,88.487,88.34,13.58]
[1643373110595,0.25,88.487,88.325,47.6579]
[1643373110596,66.72969771,88.487,88.33,13.58]
[1643373110803,12.86861244,88.486,88.335,6.0]
[1643373110996,31.00362569,88.486,88.34,6.0]
[1643373111195,21.34170467,88.485,88.35,13.58]
[1643373111395,21.34170467,88.485,88.351,1.43034257]
[1643373111597,2.95669142,88.484,88.351,1.43034257]
[1643373111795,0.25,88.483,88.351,1.43034257]
[1643373111995,10.16192102,88.483,88.351,1.43034257]
[1643373112199,111.9,88.467,88.351,1.43034257]
[1643373112398,16.987,88.45,88.34,6.0]
[1643373112605,16.987,88.45,88.331,6.0]
[1643373112796,3.20669142,88.449,88.332,0.25]
[1643373113196,2.95669142,88.448,88.32,13.58]
[1643373113398,0.25,88.447,88.322,8.15554435]
[1643373113796,16.989,88.42,88.322,8.15554435]
[1643373114295,0.25,88.419,88.322,27.75324159]
[1643373114495,0.25,88.419,88.323,0.25]
[1643373114898,16.984,88.41,88.323,0.25]
[1643373115099,16.984,88.41,88.332,6.0]
[1643373115299,0.25,88.409,88.333,0.25]
[1643373116323,0.25,88.409,88.332,6.0]
[1643373116700,0.25,88.42,88.332,6.0]
[1643373116900,17.233,88.42,88.332,6.0]
[1643373117703,17.233,88.42,88.333,0.25]
[1643373118302,17.233,88.42,88.341,6.0]
[1643373118504,42.41444694,88.419,88.35,13.58]
[1643373118701,16.984,88.41,88.35,13.58]
[1643373118901,0.25,88.409,88.351,0.25]
[1643373120314,16.986,88.4,88.35,13.58]
[1643373120511,40.06729801,88.399,88.35,13.58]
[1643373120712,40.31729801,88.399,88.35,13.58]
[1643373120912,40.31729801,88.399,88.342,2.4453711]
[1643373121312,6.9327031,88.36,88.342,2.4453711]
[1643373122312,4.84603109,88.36,88.343,0.25]
[1643373123214,0.25,88.399,88.343,0.25]
[1643373123414,0.25,88.409,88.343,0.25]
[1643373123618,4.67521242,88.47,88.341,0.25]
[1643373123831,4.67521242,88.482,88.35,6.0]
[1643373124033,3.11390982,88.463,88.36,13.58]
[1643373124235,16.977,88.45,88.361,3.69442199]
[1643373124433,16.977,88.45,88.37,6.0]
[1643373124633,16.977,88.45,88.37,13.58]
[1643373124833,16.977,88.45,88.371,0.25]
[1643373125034,16.977,88.45,88.37,13.58]
[1643373125535,16.982,88.43,88.37,13.58]
[1643373125835,0.25,88.429,88.371,0.25]
[1643373126036,16.982,88.43,88.37,13.58]
[1643373126239,40.44219673,88.441,88.354,6.0]
[1643373126638,16.983,88.42,88.36,6.0]
[1643373127338,45.04782142,88.419,88.36,3.55293291]
[1643373128238,0.25,88.419,88.36,3.55293291]
[1643373128439,0.25,88.419,88.37,13.58]
[1643373128640,0.25,88.439,88.37,13.58]
[1643373128843,0.25,88.439,88.371,0.25]
[1643373129141,0.25,88.439,88.37,13.58]
[1643373129344,42.16280345,88.429,88.37,13.58]
[1643373129846,0.25,88.428,88.37,13.58]
[1643373130043,0.25,88.428,88.371,112.9]
[1643373130347,0.25,88.428,88.372,0.25]
[1643373130543,0.25,88.428,88.37,13.58]
[1643373130945,56.606,88.44,88.35,13.58]
[1643373131143,3.12579798,88.439,88.36,13.58]
[1643373131344,3.37579798,88.439,88.36,13.58]
[1643373131542,0.25,88.439,88.36,13.58]
[1643373131744,38.64108662,88.419,88.361,3.87371805]
[1643373131943,38.64108662,88.419,88.361,4.12371805]
[1643373132145,0.25,88.418,88.361,4.12371805]
[1643373132543,56.598,88.46,88.361,4.12371805]
[1643373132745,0.25,88.458,88.361,4.12371805]
[1643373132944,3.1262563,88.457,88.361,4.12371805]
[1643373133144,41.18959572,88.423,88.361,4.12371805]
[1643373133345,3.1262563,88.459,88.361,0.25]
[1643373134147,16.976,88.45,88.361,0.25]
[1643373134345,46.2166454,88.449,88.361,0.25]
[1643373134546,3.1262563,88.448,88.361,0.25]
[1643373134946,0.25,88.447,88.361,0.25]
[1643373135346,3.1262563,88.446,88.361,0.25]
[1643373135749,0.25,88.445,88.361,0.25]
[1643373135948,16.978,88.44,88.361,0.25]
[1643373136352,0.25,88.439,88.361,0.25]
[1643373137450,0.25,88.448,88.361,0.25]
[1643373137652,3.13497246,88.447,88.361,0.25]
[1643373137853,0.25,88.446,88.361,0.25]
[1643373138052,3.13497246,88.445,88.361,0.25]
[1643373138252,16.979,88.44,88.361,0.25]
[1643373138455,3.38497246,88.439,88.36,13.58]
[1643373138653,3.13497246,88.438,88.34,13.58]
[1643373138860,0.25,88.437,88.34,13.58]
[1643373139057,0.25,88.437,88.32,13.58]
[1643373139254,16.984,88.42,88.33,16.98]
[1643373139453,16.984,88.42,88.34,13.58]
[1643373139653,0.25,88.419,88.34,19.58]
[1643373139854,0.25,88.419,88.341,47.1774]
[1643373140154,0.25,88.419,88.341,53.1774]
[1643373140353,0.25,88.419,88.35,6.0]
[1643373140560,0.25,88.428,88.35,13.58]
[1643373140758,3.13626556,88.427,88.33,13.58]
[1643373140961,3.13626556,88.427,88.323,0.25]
[1643373141160,0.25,88.426,88.323,0.25]
[1643373141360,3.13626556,88.425,88.323,0.25]
[1643373141762,16.985,88.41,88.323,0.25]
[1643373141965,0.25,88.424,88.33,6.0]
[1643373142164,0.25,88.409,88.34,13.58]
[1643373142463,0.25,88.424,88.341,0.25]
[1643373142689,0.25,88.424,88.35,6.0]
[1643373142985,0.25,88.424,88.36,13.58]
[1643373143186,3.13627745,88.423,88.36,13.58]
[1643373143386,0.25,88.422,88.341,24.6487]
[1643373143588,6.9339419,88.349,88.33,13.58]
[1643373144287,6.9339419,88.349,88.331,0.25]
[1643373145089,0.25,88.422,88.331,0.25]
[1643373145288,13.58,88.48,88.331,0.25]
[1643373145289,16.981,88.43,88.34,22.979]
[1643373145487,3.13626724,88.429,88.35,13.58]
[1643373145687,3.38626724,88.429,88.35,13.58]
[1643373145887,35.25112886,88.427,88.35,13.58]
[1643373146088,0.25,88.426,88.35,13.58]
[1643373146290,3.13647319,88.425,88.35,13.58]
[1643373146489,16.983,88.42,88.3,23.1935]
[1643373146690,3.13647319,88.419,88.31,13.58]
[1643373146890,3.38647319,88.419,88.311,0.25]
[1643373147290,3.13647319,88.418,88.311,22.9756]
[1643373147690,34.96876403,88.392,88.321,6.0]
[1643373147991,0.25,88.391,88.322,0.25]
[1643373148391,0.25,88.391,88.33,6.0]
[1643373148890,1.56772294,88.39,88.331,0.25]
[1643373149292,0.25,88.389,88.331,0.25]
[1643373150496,1.81772294,88.389,88.331,0.25]
[1643373151097,1.56772294,88.385,88.331,0.25]
[1643373151297,0.25,88.384,88.331,0.25]
[1643373151597,1.56772294,88.386,88.331,0.25]
[1643373151803,1.81772294,88.385,88.331,0.25]
[1643373152405,16.99,88.38,88.331,0.25]
[1643373152804,0.25,88.379,88.331,0.25]
[1643373153904,0.25,88.386,88.331,0.25]
[1643373154704,0.25,88.388,88.331,0.25]
[1643373154904,1.56772294,88.39,88.331,0.25]
[1643373155103,1.56772294,88.393,88.331,0.25]
[1643373155304,1.56772294,88.393,88.331,113.15]
[1643373155305,0.25,88.389,88.331,113.15]
[1643373155504,0.25,88.389,88.331,0.25]
[1643373155704,0.25,88.389,88.33,13.58]
[1643373156307,0.25,88.39,88.33,13.58]
[1643373156608,17.238,88.39,88.33,13.58]
[1643373156809,0.25,88.389,88.331,0.25]
[1643373157106,0.25,88.389,88.33,13.58]
[1643373158006,1.56772294,88.386,88.33,13.58]
[1643373158205,1.56772294,88.383,88.33,13.58]
[1643373158407,0.25,88.382,88.33,13.58]
[1643373159606,0.25,88.384,88.33,13.58]
[1643373159907,0.25,88.386,88.33,13.58]
[1643373160807,0.25,88.386,88.331,0.25]
[1643373161010,1.56772294,88.399,88.331,0.25]
[1643373161211,1.56772294,88.408,88.331,0.25]
[1643373161416,1.56772294,88.407,88.331,0.25]
[1643373161810,1.56772294,88.405,88.331,0.25]
[1643373162017,43.86445082,88.406,88.331,0.25]
[1643373162412,0.25,88.405,88.331,0.25]
[1643373162812,1.81772294,88.405,88.331,0.25]
[1643373163015,16.986,88.4,88.331,0.25]
[1643373163314,1.56772294,88.393,88.331,0.25]
[1643373163512,1.56772294,88.391,88.331,0.25]
[1643373163713,1.56772294,88.386,88.331,0.25]
[1643373164112,16.991,88.38,88.331,0.25]
[1643373164313,0.25,88.379,88.331,0.25]
[1643373164515,1.56772294,88.385,88.331,0.25]
[1643373164915,43.28185955,88.392,88.331,0.25]
[1643373165314,0.25,88.391,88.331,0.25]
[1643373166115,16.988,88.39,88.331,0.25]
[1643373166314,0.25,88.389,88.331,0.25]
[1643373168318,1.81772294,88.389,88.331,0.25]
[1643373168518,1.56772294,88.388,88.331,0.25]
[1643373168936,0.25,88.387,88.331,0.25]
[1643373169640,1.56772294,88.385,88.331,0.25]
[1643373169837,1.56772294,88.383,88.331,0.25]
[1643373170337,0.25,88.382,88.331,0.25]
[1643373170536,1.81772294,88.382,88.331,0.25]
[1643373171037,1.56772294,88.382,88.331,0.25]
[1643373171238,1.56772294,88.385,88.331,0.25]
[1643373171440,1.56772294,88.402,88.34,6.0]
[1643373171638,1.56772294,88.4,88.35,13.58]
[1643373171837,1.56772294,88.403,88.351,0.25]
[1643373172039,1.56772294,88.405,88.351,0.25]
[1643373172241,41.91573355,88.404,88.351,0.25]
[1643373172438,1.56772294,88.403,88.351,0.25]
[1643373172739,41.91573355,88.404,88.35,13.58]
[1643373172740,1.56772294,88.402,88.35,13.58]
[1643373173339,1.56772294,88.401,88.35,13.58]
[1643373173539,1.81772294,88.401,88.35,13.58]
[1643373173739,1.56772294,88.398,88.35,13.58]
[1643373174339,1.56772294,88.4,88.351,0.25]
[1643373174741,1.56772294,88.4,88.35,12.83]
[1643373174940,1.56772294,88.408,88.35,12.83]
[1643373175340,0.25,88.407,88.35,12.83]
[1643373175540,1.56772294,88.409,88.35,12.83]
[1643373175943,1.56772294,88.412,88.35,12.83]
[1643373176140,1.56772294,88.417,88.36,6.0]
[1643373176342,1.56772294,88.418,88.37,13.58]
[1643373176543,1.56772294,88.424,88.38,6.0]
[1643373176743,16.975,88.46,88.38,6.0]
[1643373176744,1.56772294,88.427,88.39,13.58]
[1643373177248,1.56772294,88.428,88.391,0.25]
[1643373178149,1.56772294,88.433,88.391,0.25]
[1643373178351,1.56772294,88.438,88.391,0.25]
[1643373178751,0.25,88.437,88.391,0.25]
[1643373179252,0.25,88.437,88.39,13.58]
[1643373179552,46.16795779,88.434,88.39,13.58]
[1643373179755,47.73568073,88.434,88.39,13.58]
[1643373179951,0.25,88.433,88.39,13.58]
[1643373181152,0.25,88.436,88.39,13.58]
[1643373181356,0.25,88.439,88.391,0.25]
[1643373181753,0.25,88.44,88.391,0.25]
[1643373182155,1.81772294,88.442,88.391,0.25]
[1643373182658,0.25,88.442,88.391,0.25]
[1643373182858,0.25,88.443,88.391,0.25]
[1643373183357,0.25,88.444,88.391,0.25]
[1643373183756,1.81772294,88.447,88.391,0.25]
[1643373184556,0.25,88.447,88.391,0.25]
[1643373185359,1.81772294,88.448,88.391,0.25]
[1643373185958,36.65637361,88.447,88.391,0.25]
[1643373186359,0.25,88.446,88.391,0.25]
[1643373186961,0.25,88.446,88.39,13.58]
[1643373187168,1.56772294,88.445,88.34,16.976]
[1643373187462,1.56772294,88.435,88.342,23.1018]
[1643373187665,1.56772294,88.427,88.34,13.58]
[1643373187866,16.983,88.42,88.34,13.58]
[1643373188060,1.56772294,88.418,88.34,13.58]
[1643373188267,43.73047893,88.426,88.292,10.98776169]
[1643373188268,1.56772294,88.415,88.32,13.58]
[1643373188463,0.25,88.417,88.31,13.58]
[1643373188464,1.56772294,88.411,88.31,13.58]
[1643373188662,1.56772294,88.407,88.3,13.58]
[1643373188864,16.988,88.4,88.3,13.58]
[1643373189063,16.988,88.4,88.31,6.0]
[1643373189266,3.20669142,88.399,88.31,6.0]
[1643373189464,4.77441436,88.399,88.31,6.0]
[1643373189665,42.22617308,88.394,88.31,6.0]
[1643373189866,1.81772294,88.393,88.31,6.0]
[1643373190065,16.992,88.38,88.31,6.0]
[1643373190262,35.27054983,88.379,88.31,6.0]
[1643373190664,0.25,88.379,88.31,6.0]
[1643373190864,0.25,88.379,88.311,0.25]
[1643373191066,0.25,88.379,88.311,6.25]
[1643373191267,16.992,88.37,88.311,6.0]
[1643373191469,16.992,88.37,88.275,1.57239128]
[1643373191667,38.258368,88.369,88.269,1.57239128]
[1643373191871,38.258368,88.369,88.28,13.58]
[1643373192270,16.996,88.36,88.28,13.58]
[1643373192671,0.25,88.359,88.29,6.0]
[1643373192872,0.25,88.359,88.291,0.25]
[1643373194370,0.25,88.359,88.281,0.25]
[1643373194570,16.996,88.36,88.281,0.25]
[1643373194977,23.9533225,88.36,88.281,0.25]
[1643373195397,23.9533225,88.36,88.29,6.0]
[1643373195798,0.25,88.359,88.291,0.25]
[1643373197399,113.15,88.359,88.291,0.25]
[1643373197999,6.9573225,88.36,88.291,0.25]
[1643373198209,6.9573225,88.36,88.291,2.35058522]
[1643373198399,6.9573225,88.36,88.291,115.25058522]
[1643373198599,6.9573225,88.36,88.301,6.0]
[1643373198801,6.9573225,88.36,88.31,13.58]
[1643373199199,6.9573225,88.36,88.302,0.25]
[1643373199398,6.9573225,88.36,88.279,24.1068]
[1643373199399,6.9573225,88.36,88.301,6.0]
[1643373199602,6.9573225,88.36,88.3,6.0]
[1643373200199,0.25,88.359,88.29,13.58]
[1643373200801,0.25,88.359,88.291,0.25]
[1643373201999,23.9513225,88.36,88.3,6.0]
[1643373202199,0.25,88.359,88.3,6.0]
[1643373202399,0.25,88.359,88.301,0.25]
[1643373202599,0.25,88.359,88.301,6.25]
[1643373203203,0.25,88.359,88.301,0.25]
[1643373203802,0.25,88.359,88.29,13.58]
[1643373205501,6.9573225,88.319,88.29,13.58]
[1643373205704,43.69566555,88.318,88.261,23.8776]
[1643373205903,43.94566555,88.318,88.261,23.8776]
[1643373206304,43.69566555,88.318,88.261,23.8776]
[1643373206904,43.69566555,88.318,88.261,25.97834215]
[1643373207304,43.69566555,88.318,88.262,0.25]
[1643373207706,43.69566555,88.318,88.261,23.8776]
[1643373208806,43.69566555,88.318,88.24,13.58]
[1643373208807,0.25,88.317,88.24,13.58]
[1643373209208,13.65,88.317,88.241,0.25]
[1643373209808,17.003,88.31,88.241,0.25]
[1643373210107,17.003,88.31,88.209,12.21638184]
[1643373210309,3.20669142,88.309,88.2,13.58]
[1643373210711,2.95669142,88.308,88.2,13.58]
[1643373210909,17.012,88.28,88.2,13.58]
[1643373211110,41.27119223,88.279,88.186,46.9642]
[1643373211317,41.52119223,88.279,88.186,46.9642]
[1643373211614,112.9,88.278,88.17,13.58]
[1643373211809,0.25,88.277,88.182,6.0]
[1643373212008,17.017,88.26,88.18,6.0]
[1643373212208,39.97405462,88.259,88.18,19.58]
[1643373212409,40.22405462,88.259,88.183,2.10074215]
[1643373212612,40.22405462,88.259,88.193,6.0]
[1643373213012,40.22405462,88.259,88.153,19.34528057]
[1643373213013,17.016,88.25,88.153,19.34528057]
[1643373213213,6.9573225,88.229,88.15,13.58]
[1643373213510,47.30639268,88.228,88.15,13.58]
[1643373213711,112.9,88.227,88.123,1.57239128]
[1643373213911,0.25,88.226,88.123,1.57239128]
[1643373214112,17.022,88.22,88.12,30.601]
[1643373214311,0.25,88.219,88.12,30.601]
[1643373214512,0.25,88.219,88.121,2.10074215]
[1643373214914,0.25,88.219,88.122,19.59528057]
[1643373215214,0.25,88.219,88.132,6.0]
[1643373215413,0.25,88.219,88.14,13.58]
[1643373215613,17.023,88.21,88.14,13.58]
[1643373215816,43.16854021,88.209,88.141,0.25]
[1643373218813,6.9573225,88.229,88.142,2.10074215]
[1643373219013,6.9573225,88.229,88.152,6.0]
[1643373219214,0.25,88.228,88.16,13.58]
[1643373219417,0.25,88.228,88.161,0.25]
[1643373219616,6.9573225,88.229,88.161,0.25]
[1643373219916,44.95979657,88.228,88.16,13.58]
[1643373220118,17.021,88.22,88.16,13.58]
[1643373220927,0.25,88.219,88.16,13.58]
[1643373221722,0.25,88.219,88.17,6.0]
[1643373221922,17.022,88.21,88.17,6.0]
[1643373222120,43.0816662,88.209,88.17,6.0]
[1643373222320,43.3316662,88.209,88.15,12.6226775]
[1643373224420,43.3316662,88.209,88.118,24.351]
[1643373224421,17.025,88.2,88.118,24.351]
[1643373224620,17.025,88.2,88.13,13.58]
[1643373224820,17.025,88.2,88.118,24.351]
[1643373224821,3.20669142,88.199,88.118,24.351]
[1643373225221,3.20669142,88.199,88.081,24.1746]
[1643373225222,2.95669142,88.198,88.081,24.1746]
[1643373225423,27.13019142,88.198,88.09,13.58]
[1643373225623,0.25,88.197,88.09,13.58]
[1643373225822,3.20669142,88.197,88.1,6.0]
[1643373226024,6.0,88.188,88.1,6.0]
[1643373226222,49.62734021,88.187,88.1,6.0]
[1643373226422,49.87734021,88.187,88.1,6.0]
[1643373226623,49.87734021,88.187,88.101,0.25]
[1643373227025,17.03,88.18,88.101,0.25]
[1643373227324,0.25,88.179,88.101,0.25]
[1643373227523,0.25,88.179,88.11,13.58]
[1643373227725,0.25,88.179,88.111,9.03468848]
[1643373227927,0.25,88.179,88.111,9.28468848]
[1643373228532,0.25,88.179,88.111,9.03468848]
[1643373229353,0.25,88.179,88.11,13.58]
[1643373229753,17.031,88.17,88.111,0.25]
[1643373230156,0.25,88.169,88.111,0.25]
[1643373230355,37.22409141,88.169,88.111,0.25]
[1643373231358,17.027,88.19,88.111,0.25]
[1643373231559,24.0542,88.233,88.12,6.0]
[1643373231759,29.62591298,88.275,88.13,13.58]
[1643373231961,56.736,88.24,88.131,24.2948]
[1643373232260,56.736,88.24,88.14,6.0]
[1643373232458,44.1267172,88.239,88.15,13.58]
[1643373232659,17.02,88.23,88.15,13.58]
[1643373232858,6.0,88.229,88.151,0.25]
[1643373233465,6.0,88.229,88.099,1.57239128]
[1643373233466,2.95669142,88.228,88.099,1.57239128]
[1643373233667,50.90669142,88.228,88.11,13.58]
[1643373233860,50.90669142,88.228,88.12,13.58]
[1643373234066,17.022,88.21,88.12,13.58]
[1643373234263,48.29163412,88.209,88.121,0.25]
[1643373234461,51.24832554,88.209,88.121,0.25]
[1643373234662,51.24832554,88.209,88.12,13.58]
[1643373234863,2.95669142,88.208,88.12,13.58]
[1643373235261,17.03,88.19,88.12,13.58]
[1643373235663,0.25,88.189,88.12,13.58]
[1643373235861,0.25,88.189,88.121,0.25]